bitfinex/quotes_BTCUSD_20251207
["timestamp","ask_amount","ask_price","bid_price","bid_amount"]
[1765139275811,0.05521969,91456.0,91455.0,0.03922828]
[1765139276616,0.01093457,91453.0,91450.0,0.0588029]
[1765139276820,0.01537969,91452.0,91450.0,0.0588029]
[1765139277021,0.23407364,91452.0,91450.0,0.0588029]
[1765139277362,0.21869395,91452.0,91450.0,0.0588029]
[1765139277515,0.01537969,91451.0,91450.0,0.0588029]
[1765139277927,0.01537969,91451.0,91450.0,0.0618029]
[1765139278564,0.01537969,91451.0,91450.0,0.003]
[1765139279554,0.22963797,91449.0,91446.0,0.03264397]
[1765139280168,0.21870591,91447.0,91446.0,0.03264397]
[1765139280633,0.01093505,91449.0,91446.0,0.03264397]
[1765139280826,0.02631474,91449.0,91446.0,0.03264397]
[1765139281033,0.02631474,91449.0,91446.0,0.03764397]
[1765139281239,0.00027719,91470.0,91469.0,0.21865331]
[1765139281451,0.00027719,91470.0,91469.0,1.92831646]
[1765139281655,0.00027719,91470.0,91469.0,2.08030706]
[1765139281898,0.00027719,91470.0,91469.0,0.91378227]
[1765139282102,0.00027719,91470.0,91469.0,0.92504227]
[1765139284097,0.00027719,91470.0,91469.0,0.93604227]
[1765139284424,0.00027719,91470.0,91469.0,0.93504227]
[1765139284826,0.00027719,91470.0,91469.0,0.93804227]
[1765139285653,0.00027719,91470.0,91469.0,0.99422263]
[1765139286347,0.00027719,91470.0,91469.0,0.91615227]
[1765139291062,0.00027719,91470.0,91469.0,0.89887227]
[1765139291463,0.00027719,91470.0,91469.0,0.91615227]
[1765139291822,0.00027719,91470.0,91469.0,0.8939483]
[1765139292052,0.00027719,91470.0,91469.0,0.91615227]
[1765139293013,0.00027719,91470.0,91469.0,1.06345227]
[1765139295405,0.01092991,91492.0,91490.0,0.02220397]
[1765139295611,0.01254278,91492.0,91490.0,0.02220397]
[1765139295812,0.03543278,91492.0,91490.0,0.02220397]
[1765139296208,0.03955,91491.0,91489.0,0.01093027]
[1765139296407,0.01666,91490.0,91489.0,0.01093027]
[1765139296643,0.03955,91490.0,91489.0,0.01093027]
[1765139296835,0.01666,91490.0,91489.0,0.01093027]
[1765139296991,0.00161287,91491.0,91490.0,0.02220397]
[1765139299570,0.00161287,91491.0,91490.0,0.02420397]
[1765139300365,0.2597636,91491.0,91490.0,0.002]
[1765139301043,0.26037782,91491.0,91490.0,0.002]
[1765139301222,0.01093099,91483.0,91479.0,0.01093147]
[1765139301427,0.02886253,91480.0,91477.0,0.04015289]
[1765139301676,0.01666,91478.0,91477.0,0.0109317]
[1765139301839,0.01689403,91478.0,91477.0,0.0109317]
[1765139302026,0.03978403,91478.0,91477.0,0.0109317]
[1765139302888,0.01689403,91478.0,91477.0,0.0109317]
[1765139303204,0.00023403,91478.0,91477.0,0.0129317]
[1765139306310,0.00023403,91478.0,91477.0,0.05189328]
[1765139307107,0.00023403,91478.0,91477.0,0.0129317]
[1765139307919,0.00023403,91478.0,91477.0,0.052031]
[1765139308133,0.00023403,91478.0,91477.0,0.0129317]
[1765139311135,0.00023403,91478.0,91477.0,0.07137408]
[1765139311536,0.00023403,91478.0,91477.0,0.0129317]
[1765139315042,0.03978403,91478.0,91477.0,0.0129317]
[1765139315243,0.25841583,91478.0,91477.0,0.002]
[1765139316398,0.0109317,91477.0,91474.0,0.06970398]
[1765139316601,0.03978403,91478.0,91475.0,0.01093194]
[1765139316831,0.02312403,91478.0,91475.0,0.01093194]
[1765139317183,0.02312403,91478.0,91477.0,0.21863419]
[1765139317773,0.00023403,91478.0,91477.0,0.21863419]
[1765139317977,0.00023403,91478.0,91477.0,0.24083816]
[1765139318199,0.00023403,91478.0,91477.0,0.23450419]
[1765139318406,0.00023403,91478.0,91477.0,1.18902215]
[1765139318947,0.00023403,91478.0,91477.0,1.26699633]
[1765139319288,0.01312776,91510.0,91499.0,0.24078559]
[1765139319483,0.00030776,91500.0,91499.0,0.25665559]
[1765139319815,0.00095113,91500.0,91499.0,0.33126474]
[1765139320482,0.00095113,91500.0,91499.0,0.27252559]
[1765139322662,0.00095113,91500.0,91499.0,0.25665559]
[1765139325251,0.00095113,91500.0,91499.0,0.27252559]
[1765139326006,0.00095113,91500.0,91499.0,0.25665559]
[1765139326205,0.00095113,91500.0,91499.0,0.23445162]
[1765139326413,0.00095113,91500.0,91499.0,0.24078559]
[1765139327229,0.00095113,91500.0,91499.0,0.27989792]
[1765139327638,0.03990113,91500.0,91499.0,0.03911233]
[1765139328021,0.00095113,91500.0,91499.0,0.02220397]
[1765139328223,0.00095113,91500.0,91499.0,0.06131183]
[1765139328421,0.00095113,91500.0,91499.0,0.02220397]
[1765139328647,0.00095113,91500.0,91499.0,0.06131186]
[1765139331403,0.00095113,91500.0,91499.0,0.02220397]
[1765139338495,0.00095113,91500.0,91495.0,0.03910789]
[1765139338496,0.21858879,91496.0,91495.0,0.03910789]
[1765139338703,0.21859834,91492.0,91491.0,0.03910789]
[1765139338879,0.23378834,91492.0,91491.0,0.03910789]
[1765139339079,0.23378834,91492.0,91487.0,0.21860985]
[1765139339080,0.25754834,91492.0,91490.0,0.03910789]
[1765139339605,0.03895,91491.0,91490.0,0.03910789]
[1765139339949,0.01519,91491.0,91490.0,0.03910789]
[1765139340400,0.01519,91491.0,91487.0,0.21860985]
[1765139340595,0.01519,91491.0,91490.0,0.001]
[1765139340750,0.01519,91491.0,91487.0,0.21860985]
[1765139341152,0.01519,91491.0,91490.0,0.001]
[1765139342361,0.03922,91491.0,91490.0,0.04013539]
[1765139342598,0.03922,91491.0,91490.0,0.001]
[1765139343188,0.03922,91491.0,91490.0,0.03035662]
[1765139343584,0.03922,91491.0,91490.0,0.001]
[1765139343989,0.03922,91491.0,91487.0,0.26867549]
[1765139344399,0.03922,91491.0,91488.0,0.039137]
[1765139344740,0.24201589,91493.0,91488.0,0.039137]
[1765139344741,0.01249,91493.0,91492.0,0.02220397]
[1765139345110,0.05243,91493.0,91492.0,0.02220397]
[1765139347144,0.05243,91493.0,91490.0,0.26867027]
[1765139347145,0.06335979,91493.0,91490.0,0.039137]
[1765139347350,0.01591,91491.0,91490.0,0.03917495]
[1765139347863,0.03994,91491.0,91490.0,0.03917495]
[1765139348353,0.03994,91491.0,91489.0,0.01093027]
[1765139348700,0.03994,91491.0,91490.0,0.21860312]
[1765139351415,0.01249,91493.0,91490.0,0.22953327]
[1765139351607,0.01249,91493.0,91492.0,0.03918299]
[1765139351990,0.01249,91493.0,91492.0,0.06138696]
[1765139352193,0.01249,91493.0,91492.0,0.02220397]
[1765139352394,0.0129287,91493.0,91492.0,0.02220397]
[1765139353178,0.0129287,91493.0,91492.0,0.06138696]
[1765139353378,0.0129287,91493.0,91492.0,0.02220397]
[1765139353807,0.0129287,91493.0,91492.0,0.06138696]
[1765139354181,0.0129287,91493.0,91492.0,0.02220397]
[1765139354534,0.0129287,91493.0,91492.0,0.06138696]
[1765139354865,0.0129287,91493.0,91492.0,0.02220397]
[1765139355310,0.0293487,91493.0,91492.0,0.06138696]
[1765139355464,0.0525087,91493.0,91492.0,0.06138696]
[1765139355669,0.0525087,91493.0,91492.0,0.03918299]
[1765139356318,0.21859834,91492.0,91491.0,0.02220397]
[1765139356521,0.25817834,91492.0,91491.0,0.02220397]
[1765139360246,0.01642,91492.0,91491.0,0.06138696]
[1765139360448,0.0250323,91496.0,91491.0,0.06138696]
[1765139360449,0.01410287,91496.0,91493.0,0.22952574]
[1765139360651,0.02326967,91494.0,91491.0,0.06138696]
[1765139360886,0.01642,91492.0,91491.0,0.06138696]
[1765139361046,0.03958,91492.0,91491.0,0.06138696]
[1765139361240,0.03958,91492.0,91491.0,0.02220397]
[1765139361841,0.03998945,91492.0,91491.0,0.02220397]
[1765139362538,0.01682945,91492.0,91491.0,0.02220397]
[1765139363693,0.00040945,91492.0,91491.0,0.02220397]
[1765139366303,0.03998945,91492.0,91491.0,0.02220397]
[1765139366565,0.03998945,91492.0,91489.0,0.05873915]
[1765139366566,0.05091936,91492.0,91489.0,0.05873915]
[1765139366700,0.21860551,91489.0,91487.0,0.05873915]
[1765139366900,0.02876,91488.0,91487.0,0.05873915]
[1765139367150,0.21861746,91484.0,91483.0,0.05873915]
[1765139367330,0.21861746,91484.0,91482.0,0.05873915]
[1765139367523,0.24178185,91483.0,91481.0,0.05873915]
[1765139367745,0.02316,91483.0,91481.0,0.05873915]
[1765139367962,0.05192,91482.0,91480.0,0.05873915]
[1765139368189,0.0355,91482.0,91480.0,0.05873915]
[1765139368465,0.01234,91482.0,91481.0,0.05873915]
[1765139369013,0.02876,91482.0,91481.0,0.05873915]
[1765139369454,0.05192,91482.0,91481.0,0.05873915]
[1765139370241,0.05192,91482.0,91480.0,0.08094312]
[1765139370671,0.02976,91482.0,91481.0,0.05873915]
[1765139370828,0.01334,91482.0,91481.0,0.05873915]
[1765139371018,0.02976,91482.0,91481.0,0.05873915]
[1765139371216,0.05192,91482.0,91481.0,0.05873915]
[1765139371829,0.05292,91482.0,91481.0,0.05873915]
[1765139373073,0.05192,91482.0,91481.0,0.05873915]
[1765139373439,0.05292,91482.0,91481.0,0.05873915]
[1765139374307,0.05292,91482.0,91480.0,0.08094312]
[1765139374516,0.001,91482.0,91480.0,0.08094312]
[1765139374711,0.001,91482.0,91480.0,0.05873915]
[1765139374915,0.03958,91481.0,91480.0,0.05873915]
[1765139376568,0.03958,91481.0,91480.0,0.05973915]
[1765139376783,0.03958,91481.0,91480.0,0.05873915]
[1765139377421,0.04058,91481.0,91480.0,0.05873915]
[1765139382061,0.04058,91481.0,91479.0,0.05873915]
[1765139382265,0.03896,91480.0,91479.0,0.05873915]
[1765139383376,0.03896,91480.0,91479.0,0.05973915]
[1765139383540,0.03896,91480.0,91479.0,0.05873915]
[1765139383925,0.25858702,91480.0,91479.0,0.05973915]
[1765139384136,0.25858702,91480.0,91467.0,0.00794]
[1765139384137,0.21863897,91475.0,91474.0,0.05873915]
[1765139384332,0.21863897,91475.0,91473.0,0.05873915]
[1765139384550,0.03577,91474.0,91473.0,0.05873915]
[1765139384756,0.05104,91474.0,91473.0,0.05873915]
[1765139385195,0.05104,91474.0,91469.0,0.05873915]
[1765139385196,0.21865092,91470.0,91469.0,0.05873915]
[1765139385411,0.21865092,91470.0,91468.0,0.05873915]
[1765139385603,0.01208,91469.0,91468.0,0.05873915]
[1765139385982,0.02735,91469.0,91468.0,0.05873915]
[1765139386370,0.02735,91469.0,91468.0,0.0591336]
[1765139386591,0.02735,91469.0,91468.0,0.0631336]
[1765139386757,0.02735,91469.0,91468.0,0.0591336]
[1765139386951,0.02735,91469.0,91468.0,0.0601336]
[1765139387192,0.02735,91469.0,91468.0,0.0641336]
[1765139387391,0.02735,91469.0,91468.0,0.00539445]
[1765139387593,0.05104,91469.0,91468.0,0.00539445]
[1765139389008,0.02735,91469.0,91468.0,0.00539445]
[1765139391174,0.01208,91469.0,91468.0,0.00539445]
[1765139391369,0.01208,91469.0,91468.0,0.02759842]
[1765139391789,0.01208,91474.0,91471.0,0.22958035]
[1765139391967,0.01208,91474.0,91472.0,0.03923922]
[1765139392165,0.02369,91473.0,91472.0,0.03923922]
[1765139392349,0.03896,91473.0,91472.0,0.03923922]
[1765139393153,0.03896,91473.0,91472.0,0.04223922]
[1765139396758,0.03896,91473.0,91472.0,0.003]
[1765139400324,0.01527,91473.0,91472.0,0.003]
[1765139400521,0.01208,91474.0,91473.0,0.21864375]
[1765139401158,0.26830154,91474.0,91472.0,0.003]
[1765139401360,0.01508,91473.0,91472.0,0.04224296]
[1765139401564,0.03758,91473.0,91472.0,0.03924296]
[1765139401765,0.03758,91473.0,91471.0,0.03924296]
[1765139401766,0.21864614,91472.0,91471.0,0.03924296]
[1765139401965,0.21865092,91470.0,91469.0,0.03924296]
[1765139402132,0.01508,91469.0,91468.0,0.03963741]
[1765139402333,0.03758,91469.0,91468.0,0.00039445]
[1765139403430,0.002,91470.0,91468.0,0.00039445]
[1765139403431,0.002,91470.0,91469.0,0.02220397]
[1765139403784,0.002,91470.0,91469.0,0.06145423]
[1765139404162,0.22958313,91471.0,91470.0,0.02220397]
[1765139404399,0.03343242,91471.0,91470.0,0.02220397]
[1765139404596,0.04851242,91471.0,91470.0,0.02220397]
[1765139405583,0.04851242,91471.0,91470.0,0.02320397]
[1765139405770,0.04951242,91471.0,91470.0,0.02320397]
[1765139407386,0.04951242,91471.0,91470.0,0.06245423]
[1765139407897,0.04951242,91471.0,91470.0,0.04025026]
[1765139408300,0.04951242,91471.0,91470.0,0.001]
[1765139408487,0.04951242,91471.0,91470.0,0.0402643]
[1765139409357,0.04951242,91471.0,91470.0,0.001]
[1765139411912,0.04951242,91471.0,91466.0,0.03373915]
[1765139411913,0.2345457,91468.0,91466.0,0.03373915]
[1765139412116,0.21866765,91463.0,91461.0,0.03930906]
[1765139412343,0.21867243,91461.0,91458.0,0.02948869]
[1765139412543,0.21867243,91461.0,91457.0,0.02948869]
[1765139412544,0.22755961,91458.0,91457.0,0.02948869]
[1765139412745,0.22755961,91458.0,91434.0,0.21873547]
[1765139412746,0.21868678,91455.0,91454.0,0.02948869]
[1765139412949,0.21868678,91455.0,91454.0,0.02953183]
[1765139413227,0.25825678,91455.0,91454.0,4.314e-05]
[1765139413847,0.35756264,91455.0,91454.0,4.314e-05]
[1765139414239,0.37976662,91455.0,91454.0,4.314e-05]
[1765139414591,0.38276662,91455.0,91454.0,4.314e-05]
[1765139414813,0.25825678,91455.0,91454.0,4.314e-05]
[1765139415331,0.26425678,91455.0,91454.0,4.314e-05]
[1765139415762,0.28646076,91455.0,91454.0,4.314e-05]
[1765139416000,0.26586965,91455.0,91454.0,4.314e-05]
[1765139417129,0.28290088,91455.0,91454.0,4.314e-05]
[1765139417337,0.35443362,91455.0,91454.0,4.314e-05]
[1765139417563,0.3766376,91455.0,91454.0,4.314e-05]
[1765139417789,0.35443362,91455.0,91454.0,4.314e-05]
[1765139418792,0.3766376,91455.0,91454.0,4.314e-05]
[1765139419504,0.35443362,91455.0,91454.0,4.314e-05]
[1765139424071,0.28290088,91455.0,91454.0,4.314e-05]
[1765139424951,0.30018088,91455.0,91454.0,4.314e-05]
[1765139426364,0.32238486,91455.0,91454.0,4.314e-05]
[1765139426536,0.30018088,91455.0,91454.0,4.314e-05]
[1765139433520,0.32238486,91455.0,91454.0,4.314e-05]
[1765139434119,0.30018088,91455.0,91454.0,4.314e-05]
[1765139434956,0.32238486,91455.0,91454.0,4.314e-05]
[1765139436719,0.40526526,91455.0,91454.0,4.314e-05]
[1765139436873,0.42746924,91455.0,91454.0,4.314e-05]
[1765139437723,0.40526526,91455.0,91454.0,4.314e-05]
[1765139438014,0.42746924,91455.0,91454.0,4.314e-05]
[1765139439285,0.40526526,91455.0,91454.0,4.314e-05]
[1765139441445,0.41551058,91455.0,91454.0,4.314e-05]
[1765139442032,0.43771456,91455.0,91454.0,4.314e-05]
[1765139442964,0.33263018,91455.0,91454.0,4.314e-05]
[1765139445676,0.3104262,91455.0,91454.0,4.314e-05]
[1765139446245,0.33263018,91455.0,91454.0,4.314e-05]
[1765139449603,0.3104262,91455.0,91454.0,4.314e-05]
[1765139450574,0.33263018,91455.0,91454.0,4.314e-05]
[1765139450780,0.3104262,91455.0,91454.0,4.314e-05]
[1765139453854,0.31043331,91455.0,91454.0,4.314e-05]
[1765139455921,0.35450929,91455.0,91454.0,4.314e-05]
[1765139456520,0.31043331,91455.0,91454.0,4.314e-05]
[1765139457798,0.33263729,91455.0,91454.0,4.314e-05]
[1765139458446,0.65563729,91455.0,91454.0,4.314e-05]
[1765139458868,0.68514044,91455.0,91454.0,4.314e-05]
[1765139460995,0.56390033,91451.0,91450.0,0.00127882]
[1765139461195,0.56390033,91451.0,91450.0,7.652e-05]
[1765139461196,0.61505276,91451.0,91450.0,7.652e-05]
[1765139461396,0.21874418,91431.0,91430.0,0.02950315]
[1765139461573,0.21874418,91431.0,91404.0,0.01094044]
[1765139461574,0.21874897,91429.0,91428.0,0.02950315]
[1765139461771,0.21874897,91429.0,91428.0,0.02954625]
[1765139461995,0.26852897,91429.0,91428.0,0.02954625]
[1765139462199,0.26852897,91429.0,91428.0,4.31e-05]
[1765139462479,0.26852897,91429.0,91428.0,0.02954625]
[1765139462902,0.27452897,91429.0,91428.0,0.02954625]
[1765139463305,0.27452897,91429.0,91428.0,4.31e-05]
[1765139466331,0.23362897,91429.0,91428.0,0.02954625]
[1765139466733,0.01488,91429.0,91428.0,0.02954625]
[1765139466974,0.01488,91429.0,91428.0,4.31e-05]
[1765139466975,0.23362897,91429.0,91428.0,4.31e-05]
[1765139467182,0.22962897,91429.0,91428.0,0.00068714]
[1765139467584,0.22962897,91429.0,91428.0,0.00468714]
[1765139467775,0.22762897,91429.0,91428.0,0.00468714]
[1765139468235,0.21974897,91429.0,91428.0,0.04454714]
[1765139468375,0.001,91429.0,91428.0,0.04454714]
[1765139471862,0.001,91429.0,91428.0,0.62083718]
[1765139472114,0.001,91429.0,91428.0,0.02689112]
[1765139472470,0.001,91429.0,91428.0,0.08567169]
[1765139472788,0.001,91429.0,91428.0,0.02689112]
[1765139473290,0.21974897,91429.0,91428.0,0.02689112]
[1765139473448,0.001,91429.0,91428.0,0.02689112]
[1765139473655,0.001,91429.0,91428.0,0.00468714]
[1765139474316,0.21974897,91429.0,91428.0,0.00468714]
[1765139474436,0.21974897,91429.0,91428.0,0.04399307]
[1765139474640,0.001,91429.0,91428.0,0.04399307]
[1765139474838,0.21974897,91429.0,91428.0,0.04399307]
[1765139475961,0.001,91429.0,91428.0,0.04399307]
[1765139476157,0.21974897,91429.0,91428.0,0.04399307]
[1765139476497,0.00988,91429.0,91428.0,0.04399307]
[1765139477453,0.00988,91429.0,91428.0,0.00468714]
[1765139477659,0.00988,91429.0,91428.0,0.04399307]
[1765139479166,0.00988,91429.0,91428.0,0.00468714]
[1765139481125,0.00988,91429.0,91428.0,0.04399767]
[1765139484065,0.02598,91429.0,91428.0,0.04399767]
[1765139484420,0.00988,91429.0,91428.0,0.04399767]
[1765139484631,0.04993,91429.0,91428.0,0.04399767]
[1765139484830,0.04993,91429.0,91428.0,0.00468714]
[1765139489211,0.07213398,91429.0,91428.0,0.00468714]
[1765139490299,0.1563384,91429.0,91428.0,0.00468714]
[1765139490628,0.16658063,91429.0,91428.0,0.00468714]
[1765139491575,0.48958063,91429.0,91428.0,0.00468714]
[1765139491990,0.48858063,91429.0,91428.0,0.00468714]
[1765139492197,0.49158063,91429.0,91428.0,0.00468714]
[1765139492494,0.49158063,91429.0,91428.0,0.00068714]
[1765139492643,0.49558063,91429.0,91428.0,0.00068714]
[1765139492840,0.48858063,91429.0,91428.0,0.00068714]
[1765139493299,0.50858063,91429.0,91428.0,0.00168714]
[1765139497016,0.5380761,91429.0,91428.0,0.00168714]
[1765139499495,0.01094163,91394.0,91390.0,0.32100657]
[1765139499740,0.01094163,91394.0,91391.0,0.01094199]
[1765139499943,0.01094139,91396.0,91393.0,0.02227175]
[1765139500268,0.01094127,91397.0,91393.0,0.02227175]
[1765139500612,0.01094139,91396.0,91393.0,0.02227175]
[1765139500843,0.01094127,91397.0,91394.0,0.01094163]
[1765139501226,0.01094139,91396.0,91393.0,0.02227175]
[1765139501415,0.00888,91398.0,91394.0,0.01094163]
[1765139501744,0.01982115,91398.0,91395.0,0.01094151]
[1765139502951,0.23864452,91398.0,91395.0,0.02594151]
[1765139503100,0.23864452,91398.0,91395.0,0.015]
[1765139503518,0.01982115,91398.0,91395.0,0.015]
[1765139503936,0.2297616,91400.0,91396.0,0.01094139]
[1765139503937,0.01094091,91400.0,91396.0,0.01094139]
[1765139504383,0.01094103,91399.0,91395.0,0.04944151]
[1765139504704,0.22976414,91399.0,91395.0,0.02594151]
[1765139504876,0.01094103,91399.0,91396.0,0.0235]
[1765139505016,0.22976186,91399.0,91396.0,0.0385]
[1765139505219,0.01094103,91399.0,91396.0,0.0385]
[1765139505439,0.01094103,91399.0,91397.0,0.0235]
[1765139506053,0.01094103,91399.0,91395.0,0.02594151]
[1765139506054,0.01094115,91398.0,91395.0,0.01094151]
[1765139506378,0.01094115,91398.0,91396.0,0.015]
[1765139506581,0.01094115,91398.0,91395.0,0.01094151]
[1765139507125,0.22976683,91397.0,91394.0,0.02220398]
[1765139507392,0.21883018,91396.0,91394.0,0.02220398]
[1765139507823,0.01094175,91393.0,91390.0,0.02989282]
[1765139508000,0.22977875,91393.0,91391.0,0.02220398]
[1765139508202,0.22977875,91393.0,91391.0,0.02941515]
[1765139509209,0.22977875,91393.0,91392.0,0.02941515]
[1765139509783,0.24612875,91393.0,91392.0,0.02941515]
[1765139509966,0.24712875,91393.0,91392.0,0.02941515]
[1765139511196,0.24612875,91393.0,91392.0,0.04241515]
[1765139511373,0.02829175,91393.0,91392.0,0.04241515]
[1765139511569,0.05242175,91393.0,91392.0,0.04346957]
[1765139511894,0.05242175,91393.0,91392.0,0.01405442]
[1765139512250,0.02829175,91393.0,91392.0,0.01405442]
[1765139512481,0.01194175,91393.0,91392.0,0.04346957]
[1765139513259,0.01194175,91393.0,91392.0,0.01405442]
[1765139514027,0.02829175,91393.0,91392.0,0.01405442]
[1765139514311,0.05242175,91393.0,91392.0,0.01405442]
[1765139515371,0.05242175,91393.0,91392.0,0.04352241]
[1765139515572,0.05242175,91393.0,91392.0,0.01405442]
[1765139516576,0.05403462,91393.0,91392.0,0.01405442]
[1765139517235,0.06291462,91393.0,91392.0,0.01405442]
[1765139518434,0.06291462,91393.0,91392.0,0.0435228]
[1765139519259,0.06291462,91393.0,91392.0,0.01405442]
[1765139520529,0.08019462,91393.0,91392.0,0.01405442]
[1765139520680,0.1130533,91393.0,91392.0,0.01405442]
[1765139521282,0.1120533,91393.0,91392.0,0.01405442]
[1765139521481,0.1120533,91393.0,91392.0,0.00105442]
[1765139521863,0.1130533,91393.0,91392.0,0.01105442]
[1765139522984,0.1120533,91393.0,91392.0,0.01105442]
[1765139523410,0.1140533,91393.0,91392.0,0.01105442]
[1765139529561,0.0899233,91393.0,91392.0,0.01105442]
[1765139530006,0.0562933,91393.0,91392.0,0.01105442]
[1765139530209,0.002,91393.0,91392.0,0.05133442]
[1765139530376,0.002,91393.0,91392.0,0.0735384]
[1765139530709,0.002,91393.0,91392.0,0.10306067]
[1765139531408,0.002,91393.0,91392.0,0.65525492]
[1765139531553,0.002,91393.0,91392.0,0.94988566]
[1765139532170,0.01093996,91408.0,91405.0,0.01094032]
[1765139532387,0.01093996,91408.0,91407.0,0.02220398]
[1765139532600,0.01093996,91408.0,91407.0,0.02281895]
[1765139533330,0.01093984,91409.0,91408.0,0.02220398]
[1765139533481,0.0109396,91411.0,91410.0,0.02220398]
[1765139533683,0.0109396,91411.0,91410.0,0.03799398]
[1765139533907,0.0109396,91411.0,91410.0,0.06181398]
[1765139534108,0.0109396,91411.0,91410.0,0.06234108]
[1765139534505,0.01093936,91413.0,91411.0,0.02220398]
[1765139534734,0.22972835,91413.0,91411.0,0.02220398]
[1765139535309,0.22972724,91413.0,91411.0,0.02220398]
[1765139535726,0.01093924,91414.0,91411.0,0.02220398]
[1765139536078,0.001,91413.0,91411.0,0.02220398]
[1765139536441,0.001,91413.0,91411.0,0.02620398]
[1765139536644,0.01093924,91414.0,91411.0,0.03314358]
[1765139537039,0.01193924,91414.0,91411.0,0.03714358]
[1765139537239,0.01193924,91414.0,91411.0,0.03314358]
[1765139537651,0.01193924,91414.0,91411.0,0.03094398]
[1765139537858,0.001,91414.0,91411.0,0.26067336]
[1765139538238,0.001,91414.0,91411.0,0.26467336]
[1765139538643,0.001,91414.0,91411.0,0.04588358]
[1765139539468,0.001,91414.0,91411.0,0.04188358]
[1765139539669,0.001,91414.0,91411.0,0.04588358]
[1765139539901,0.001,91414.0,91413.0,0.23457726]
[1765139540067,0.01193924,91414.0,91411.0,0.04588358]
[1765139540270,0.01193924,91414.0,91411.0,0.03494398]
[1765139540486,0.001,91414.0,91413.0,0.00043924]
[1765139541676,0.010939,91416.0,91413.0,0.00043924]
[1765139541880,0.01193924,91414.0,91411.0,0.04588358]
[1765139542343,0.001,91414.0,91411.0,0.26067549]
[1765139542498,0.01093912,91415.0,91411.0,0.26067549]
[1765139542499,0.01093912,91415.0,91411.0,0.26067386]
[1765139542698,0.01093912,91415.0,91413.0,0.00343924]
[1765139542900,0.01093912,91415.0,91412.0,0.01093948]
[1765139543099,0.01093912,91415.0,91414.0,0.00040995]
[1765139544197,0.010939,91416.0,91414.0,0.00040995]
[1765139544398,0.010939,91416.0,91413.0,0.01093936]
[1765139544605,0.001,91415.0,91413.0,0.01093936]
[1765139545206,0.01093888,91417.0,91413.0,0.2297258]
[1765139545207,0.22971719,91417.0,91413.0,0.2297258]
[1765139545468,0.001,91416.0,91414.0,0.003]
[1765139545645,0.001,91416.0,91413.0,0.2297258]
[1765139546008,0.01093888,91417.0,91413.0,0.2327258]
[1765139546207,0.01193888,91417.0,91413.0,0.2297258]
[1765139546615,0.23071855,91417.0,91414.0,0.003]
[1765139546824,0.23071855,91417.0,91413.0,0.01093936]
[1765139547167,0.23071855,91417.0,91413.0,0.01393936]
[1765139547544,0.22972139,91416.0,91413.0,0.003]
[1765139547774,0.21878445,91415.0,91413.0,0.003]
[1765139548381,0.22972357,91415.0,91411.0,0.04188358]
[1765139548777,0.22971855,91417.0,91411.0,0.04188358]
[1765139548778,0.0109384,91421.0,91416.0,0.010939]
[1765139549006,0.0109384,91421.0,91419.0,0.01186]
[1765139549588,0.01093828,91422.0,91419.0,0.01186]
[1765139550835,0.01093828,91422.0,91419.0,0.02279864]
[1765139551580,0.002,91422.0,91419.0,0.02379864]
[1765139551782,0.002,91422.0,91419.0,0.02279864]
[1765139552154,0.002,91422.0,91419.0,0.02379864]
[1765139553842,0.002,91422.0,91419.0,0.001]
[1765139553843,0.01628,91420.0,91419.0,0.001]
[1765139554194,0.2350505,91420.0,91419.0,0.001]
[1765139554543,0.2581605,91420.0,91419.0,0.001]
[1765139554950,0.2581605,91420.0,91414.0,0.01093924]
[1765139554951,0.22971499,91418.0,91415.0,0.01093912]
[1765139555191,0.01093888,91417.0,91414.0,0.01093924]
[1765139555588,0.01093888,91417.0,91416.0,0.00035138]
[1765139556121,0.05032888,91417.0,91416.0,0.00035138]
[1765139556456,0.02721888,91417.0,91416.0,0.00035138]
[1765139556873,0.02721888,91417.0,91416.0,0.00235138]
[1765139557295,0.02821888,91417.0,91416.0,0.00235138]
[1765139557509,0.05132888,91417.0,91416.0,0.00235138]
[1765139557693,0.05032888,91417.0,91416.0,0.00235138]
[1765139558129,0.05232888,91417.0,91416.0,0.00235138]
[1765139558898,0.02921888,91417.0,91416.0,0.00235138]
[1765139559093,0.002,91417.0,91416.0,0.00235138]
[1765139559634,0.002,91417.0,91416.0,0.07942461]
[1765139559833,0.002,91417.0,91416.0,0.11872024]
[1765139560184,0.002,91417.0,91416.0,0.07942461]
[1765139560641,0.002,91417.0,91416.0,0.05722063]
[1765139561647,0.002,91417.0,91416.0,0.11616407]
[1765139561972,0.002,91417.0,91416.0,0.05722063]
[1765139562175,0.002,91417.0,91416.0,0.05382138]
[1765139562750,0.002,91417.0,91416.0,0.05722462]
[1765139562925,0.01093816,91423.0,91419.0,0.01093864]
[1765139563135,0.21876572,91422.0,91420.0,0.03932257]
[1765139563470,0.21876572,91422.0,91420.0,0.03955681]
[1765139564548,0.2297035,91423.0,91420.0,0.03955681]
[1765139565156,0.2297035,91423.0,91421.0,0.03932257]
[1765139566755,0.2297035,91423.0,91421.0,0.04332257]
[1765139570330,0.2297035,91423.0,91421.0,0.04340024]
[1765139571840,0.22969968,91424.0,91421.0,0.00407767]
[1765139571988,0.01093804,91424.0,91421.0,0.05433864]
[1765139572190,0.01093792,91425.0,91421.0,0.05433864]
[1765139572391,0.21876572,91422.0,91421.0,0.04340024]
[1765139572606,0.21876572,91422.0,91421.0,0.03357061]
[1765139572607,0.24482859,91422.0,91421.0,0.03357061]
[1765139572838,0.26828859,91422.0,91421.0,0.03357061]
[1765139573463,0.26828859,91422.0,91421.0,0.00407767]
[1765139573840,0.26928859,91422.0,91421.0,0.00407767]
[1765139574043,0.26928859,91422.0,91421.0,7.767e-05]
[1765139574275,0.26928859,91422.0,91421.0,0.00407767]
[1765139574632,0.26928859,91422.0,91421.0,7.767e-05]
[1765139574840,0.28656859,91422.0,91421.0,0.00207767]
[1765139575671,0.26310859,91422.0,91421.0,0.00207767]
[1765139577758,0.04434287,91422.0,91421.0,0.00207767]
[1765139580183,0.04194433,91422.0,91421.0,0.00207767]
[1765139581508,0.06528433,91422.0,91421.0,0.00207767]
[1765139582153,0.08231556,91422.0,91421.0,0.00207767]
[1765139582358,0.19497305,91422.0,91421.0,0.00207767]
[1765139582971,0.51697305,91422.0,91421.0,0.00207767]
[1765139583167,0.51697305,91422.0,91421.0,7.767e-05]
[1765139583490,0.52297305,91422.0,91421.0,7.767e-05]
[1765139583866,0.51697305,91422.0,91421.0,7.767e-05]
[1765139584071,0.53397305,91422.0,91421.0,7.767e-05]
[1765139584293,0.53597305,91422.0,91421.0,7.767e-05]
[1765139584497,0.51897305,91422.0,91421.0,7.767e-05]
[1765139584696,0.53397305,91422.0,91421.0,7.767e-05]
[1765139585134,0.54297305,91422.0,91421.0,0.00107767]
[1765139586946,0.54297305,91422.0,91381.0,0.02951199]
[1765139586947,0.21883992,91391.0,91381.0,0.02951199]
[1765139587158,0.28042115,91391.0,91380.0,0.02991199]